fUSD/lending_fUSD_20240403
["ID","MTS","AMOUNT","RATE_DAILY","PERIOD"]
[321412102,1712165025852,-6855.2803,0.00023567,2]
[321412103,1712165025875,-164.55,0.00024562,2]
[321412104,1712165025897,-2500.0,0.00024699,2]
[321412105,1712165025919,-65170.7498403,0.00024891,2]
[321412106,1712165025942,-354.97737452,0.000249,2]
[321412107,1712165025966,-730.87720116,0.000249,2]
[321412108,1712165025989,-64174.6792171,0.00024972,2]
[321412109,1712165026011,-8392.4954166,0.00024972,2]
[321412110,1712165026035,-337.54766861,0.00024978,2]
[321412111,1712165026057,-252.18,0.00024978,2]
[321412112,1712165026080,-330.00215827,0.00024979,2]
[321412113,1712165026103,-715.16177943,0.00024979,2]
[321412114,1712165026126,-543.0,0.0002498,2]
[321412115,1712165026150,-141899.08215039,0.0002498,2]
[321412116,1712165026172,-435532.51493524,0.0002498,2]
[321412117,1712165026193,-25798.7173092,0.00024983,2]
[321412118,1712165026215,-4431.5902646,0.00024983,2]
[321412119,1712165026238,-3728.1287802,0.00024983,2]
[321412120,1712165026260,-61239.2535184,0.00024983,2]
[321412121,1712165026283,-560.6155768,0.00024989,2]
[321412122,1712165026304,-2797.33785842,0.0002499,2]
[321412123,1712165026327,-307.2511322,0.00024998,2]
[321412124,1712165026349,-189.82108161,0.00024998,2]
[321412125,1712165026371,-200.0,0.00024998,2]
[321412126,1712165026393,-194.8423167,0.00025,2]
[321412127,1712165026415,-1172599.34412025,0.00025,2]
[321412128,1712165032448,-1041.84208935,0.00023566,2]
[321412129,1712165032471,-670.46416821,0.00024999,2]
[321412130,1712165032494,-245959.56043284,0.00025,2]
[321412131,1712165032515,-2000.0,0.00025,2]
[321412132,1712165032537,-791981.52916472,0.00025,2]
[321412133,1712165032561,-179817.99364394,0.00025,2]
[321412134,1712165032583,-156.54568019,0.00025,2]
[321412135,1712165032607,-155.0,0.00025,2]
[321412136,1712165032629,-2600.3152557,0.00025,2]
[321412137,1712165032652,-155.0,0.00025,2]
[321412138,1712165032674,-253.24361536,0.00025,2]
[321412139,1712165032697,-775208.50594969,0.00025,2]
[321412140,1712165036783,-628.5601577,0.00024999,2]
[321412141,1712165036807,-563286.9903044,0.00025,2]
[321412142,1712165036831,-170176.61118652,0.00025,2]
[321412143,1712165036853,-403.0,0.00025,2]
[321412144,1712165036876,-1255.48,0.00025,2]
[321412145,1712165036901,-1110.72,0.00025,2]
[321412146,1712165036923,-1393.03,0.00025,2]
[321412147,1712165036948,-1052471.55029277,0.00025,2]
[321412148,1712165036971,-209274.05805861,0.00025,2]
[321412149,1712165058338,399.42843147,0.00024,4]
[321412150,1712165099003,-1000.0,0.00024699,2]
[321412151,1712165099024,-250.94554818,0.000249,2]
[321412152,1712165099045,-715.16177943,0.00024999,2]
[321412153,1712165099066,-14033.89267239,0.00025,2]
[321412154,1712165152332,-1350.0,0.00025,3]
[321412155,1712165152357,-1400.0,0.00027,3]
[321412156,1712165152379,-480.0,0.00027,10]
[321412157,1712165152401,-210.550743,0.00027397,7]
[321412158,1712165152422,-210.550743,0.00027397,7]
[321412159,1712165152444,-210.550743,0.00027397,7]
[321412160,1712165152468,-210.550743,0.00027397,7]
[321412161,1712165152489,-210.550743,0.00027397,7]
[321412162,1712165152511,-210.550743,0.00027397,7]
[321412163,1712165152533,-210.550743,0.00027397,7]
[321412164,1712165152555,-210.550743,0.00027397,7]
[321412165,1712165152576,-210.550743,0.00027397,7]
[321412166,1712165152600,-210.550743,0.00027397,7]
[321412167,1712165152621,-210.550743,0.00027397,7]
[321412168,1712165152645,-210.550743,0.00027397,7]
[321412169,1712165152667,-2956.4009,0.00027397,7]
[321412170,1712165152691,-600.0,0.00028,29]
[321412171,1712165152715,-600.0,0.00029,30]
[321412172,1712165152736,-1450.0,0.00029,3]
[321412173,1712165152759,-440.96392074,0.000295,3]
[321412174,1712165152781,-405.14841286,0.0003,4]
[321412175,1712165152803,-14237.09636671,0.0003,4]
[321412176,1712165152842,-156.36941219,0.0003,4]
[321412177,1712165152885,-155.0,0.0003,4]
[321412178,1712165152929,-366.69768378,0.0003,4]
[321412179,1712165152974,-600.0,0.0003,31]
[321412180,1712165153009,-210.550743,0.0003,7]
[321412181,1712165153030,-210.550743,0.0003,7]
[321412182,1712165153053,-19289.64853053,0.0003,4]
[321412183,1712165153074,-155.0,0.00030194,4]
[321412184,1712165153094,-155.0,0.00030195,4]
[321412185,1712165153118,-489.98833825,0.00031,4]
[321412186,1712165153140,-150.0,0.00031,3]
[321412187,1712165153163,-600.0,0.00031,32]
[321412188,1712165153186,-1500.0,0.00031,3]
[321412189,1712165153215,-150.0,0.00032,5]
[321412190,1712165153238,-600.0,0.00032,33]
[321412191,1712165153259,-853.02669554,0.00032,4]
[321412192,1712165153281,-163.0,0.0003217,15]
[321412193,1712165153304,-307.2511322,0.00032176,4]
[321412194,1712165153326,-978.49438987,0.00032176,4]
[321412195,1712165153348,-330.00215827,0.00032176,4]
[321412196,1712165153371,-337.54766861,0.00032176,4]
[321412197,1712165153392,-189.82108161,0.00032176,4]
[321412198,1712165153415,-560.6155768,0.00032176,4]
[321412199,1712165153437,-8486.75725736,0.00032176,4]
[321412200,1712165153459,-252.18,0.00032176,4]
[321412201,1712165153482,-210.550743,0.00032178,7]
[321412202,1712165153504,-210.550743,0.00032178,7]
[321412203,1712165153526,-163.0,0.0003218,15]
[321412204,1712165153723,-163.0,0.0003219,15]
[321412205,1712165153746,-210.550743,0.00032197,7]
[321412206,1712165153768,-210.550743,0.00032197,7]
[321412207,1712165153791,-492.0,0.000322,5]
[321412208,1712165153813,-210.550743,0.000322,7]
[321412209,1712165153837,-210.550745,0.000322,7]
[321412210,1712165153860,-1004.02049968,0.00032418,4]
[321412211,1712165153883,-151.0,0.00032877,7]
[321412212,1712165153907,-151.0,0.00032877,7]
[321412213,1712165153930,-151.0,0.00032877,7]
[321412214,1712165153953,-151.0,0.00032877,7]
[321412215,1712165153976,-151.0,0.00032877,7]
[321412216,1712165153999,-844.926091,0.00032877,7]
[321412217,1712165154021,-844.926091,0.00032877,7]
[321412218,1712165154043,-844.926091,0.00032877,7]
[321412219,1712165154065,-844.926091,0.00032877,7]
[321412220,1712165154087,-844.926091,0.00032877,7]
[321412221,1712165154109,-844.926091,0.00032877,7]
[321412222,1712165154130,-844.926091,0.00032877,7]
[321412223,1712165154152,-844.926091,0.00032877,7]
[321412224,1712165154174,-844.926091,0.00032877,7]
[321412225,1712165154196,-844.926091,0.00032877,7]
[321412226,1712165154220,-844.926091,0.00032877,7]
[321412227,1712165154241,-844.926091,0.00032877,7]
[321412228,1712165154263,-844.926091,0.00032877,7]
[321412229,1712165154285,-844.926091,0.00032877,7]
[321412230,1712165154309,-844.926091,0.00032877,7]
[321412231,1712165154331,-844.926091,0.00032877,7]
[321412232,1712165154354,-844.926091,0.00032877,7]
[321412233,1712165154377,-844.926091,0.00032877,7]
[321412234,1712165154400,-844.926091,0.00032877,7]
[321412235,1712165154422,-844.926098,0.00032877,7]
[321412236,1712165154443,-228.26966719,0.000329,30]
[321412237,1712165154466,-287.62,0.00033,6]
[321412238,1712165154491,-1550.0,0.00033,3]
[321412239,1712165154513,-600.0,0.00033,34]
[321412240,1712165154537,-1004.02049968,0.00033675,5]
[321412241,1712165154559,-600.0,0.00034,35]
[321412242,1712165154581,-9053.58976532,0.000348,4]
[321412243,1712165154603,-1004.02049968,0.00034931,7]
[321412244,1712165154629,-16915.89968089,0.00035,4]
[321412245,1712165154652,-1281.21723531,0.00035,4]
[321412246,1712165154674,-806.0,0.00035,8]
[321412247,1712165154696,-600.0,0.00035,36]
[321412248,1712165154720,-1600.0,0.00035,3]
[321412249,1712165154741,-2500.0,0.00035,7]
[321412250,1712165154766,-268.040401,0.00035798,22]
[321412251,1712165154787,-1000.0,0.00036,3]
[321412252,1712165154808,-600.0,0.00036,37]
[321412253,1712165154831,-1004.02049968,0.00036187,9]
[321412254,1712165154855,-157.040401,0.00036198,23]
[321412255,1712165154880,-157.040401,0.00036498,24]
[321412256,1712165154904,-157.040401,0.00036798,25]
[321412257,1712165154926,-600.0,0.00037,38]
[321412258,1712165154949,-1650.0,0.00037,3]
[321412259,1712165154974,-157.040401,0.00037198,26]
[321412260,1712165154997,-1255.48,0.000372,7]
[321412261,1712165155021,-1004.02049968,0.00037444,10]
[321412262,1712165155045,-157.040401,0.00037498,27]
[321412263,1712165155069,-152.0,0.00037716,3]
[321412264,1712165155096,-157.040401,0.00037798,27]
[321412265,1712165155118,-2100.0,0.00038,7]
[321412266,1712165155140,-1000.0,0.00038,5]
[321412267,1712165155162,-156.58470025,0.00038,4]
[321412268,1712165155184,-5272.88356785,0.00038,120]
[321412269,1712165155208,-600.0,0.00038,39]
[321412270,1712165155235,-1064.34,0.00038027,15]
[321412271,1712165155258,-200.0,0.00038164,5]
[321412272,1712165155283,-157.040401,0.00038198,38]
[321412273,1712165155307,-157.040401,0.00038498,38]
[321412274,1712165155329,-858353.10306147,0.00038568,7]
[321412275,1712165160865,-921819.09398458,0.00038568,7]
[321412276,1712165160888,-150.0,0.00038673,120]
[321412277,1712165160910,-155.0,0.000387,4]
[321412278,1712165160935,-1004.02049968,0.000387,12]
[321412279,1712165160959,-163.0,0.00038738,15]
[321412280,1712165160984,-163.0,0.00038748,15]
[321412281,1712165161007,-163.0,0.00038748,15]
[321412282,1712165161031,-163.0,0.00038758,15]
[321412283,1712165161054,-163.0,0.00038758,15]
[321412284,1712165161077,-152.0,0.00038767,4]
[321412285,1712165161103,-157.040401,0.00038798,38]
[321412286,1712165161127,-4064.11230153,0.000389,15]
[321412287,1712165161151,-163.0,0.0003896,15]
[321412288,1712165161176,-163.0,0.0003897,15]
[321412289,1712165161205,-151.0,0.00038978,4]
[321412290,1712165161231,-71206.73281321,0.00039,5]
[321412291,1712165267621,-5000.0,0.0002488,2]
[321412292,1712165428769,863.07,0.00022524,2]
[321412302,1712165432433,-490.35265103,0.00024476,2]
[321412303,1712165432445,-288.33229645,0.00024476,2]
[321412304,1712165432454,-555.67741939,0.00024477,2]
[321412305,1712165432570,-3300.2072951,0.00024477,2]
[321412306,1712165432580,-936.0,0.00024478,2]
[321412307,1712165432589,-799.6905,0.0002475,2]
[321412308,1712165432598,-150.0,0.00024777,2]
[321412309,1712165432608,-217.28613312,0.00024778,2]
[321412310,1712165432618,-268.14751702,0.00024778,2]
[321412311,1712165432627,-1639.27200792,0.00024778,2]
[321412312,1712165432636,-863.07,0.00024788,2]
[321412313,1712165432648,-4072.94557277,0.000248,2]
[321412314,1712165432680,-858.16390953,0.000248,2]
[321412315,1712165432706,-4409.06155993,0.000248,2]
[321412316,1712165432721,-342.8148006,0.00024878,2]
[321412317,1712165432730,-196.41457958,0.00024878,2]
[321412318,1712165432740,-203.11203793,0.00024878,2]
[321412319,1712165432749,-238.40860617,0.00024878,2]
[321412320,1712165432759,-272.59640357,0.00024878,2]
[321412321,1712165432768,-160.1828942,0.00024878,2]
[321412322,1712165432778,-268.91317088,0.00024878,2]
[321412323,1712165432787,-832.87825208,0.00024879,2]
[321412324,1712165432797,-198.22248409,0.00024879,2]
[321412325,1712165432806,-214.69761119,0.00024879,2]
[321412326,1712165432815,-265.41538966,0.00024879,2]
[321412327,1712165432824,-155.0,0.00024879,2]
[321412328,1712165432834,-283.79529727,0.00024879,2]
[321412330,1712165432843,-737.15155034,0.00024879,2]
[321412333,1712165432852,-182379.3242,0.0002488,2]
[321412335,1712165432861,-499.99,0.0002488,2]
[321412338,1712165432870,-255.1913,0.000249,2]
[321412341,1712165432880,-339.58520011,0.000249,2]
[321412343,1712165432889,-339.58520011,0.000249,2]
[321412345,1712165432898,-339.58520011,0.000249,2]
[321412347,1712165432907,-339.58520011,0.000249,2]
[321412349,1712165432916,-339.58520011,0.000249,2]
[321412351,1712165432926,-339.58520011,0.000249,2]
[321412353,1712165432936,-339.58520011,0.000249,2]
[321412355,1712165432946,-339.58520011,0.000249,2]
[321412357,1712165432955,-339.58520011,0.000249,2]
[321412359,1712165432964,-339.58520011,0.000249,2]
[321412361,1712165432973,-339.58520011,0.000249,2]
[321412363,1712165432983,-339.58520011,0.000249,2]
[321412365,1712165432991,-339.58520011,0.000249,2]
[321412367,1712165433000,-339.58520011,0.000249,2]
[321412369,1712165433009,-339.58520011,0.000249,2]
[321412371,1712165433018,-339.58520011,0.000249,2]
[321412373,1712165433028,-339.58520011,0.000249,2]
[321412375,1712165433037,-339.58520011,0.000249,2]
[321412377,1712165433046,-339.58520011,0.000249,2]
[321412379,1712165433055,-339.58520011,0.000249,2]
[321412381,1712165433064,-339.58520011,0.000249,2]
[321412383,1712165433073,-339.58520011,0.000249,2]
[321412385,1712165433083,-339.58520011,0.000249,2]
[321412387,1712165433092,-339.58520011,0.000249,2]
[321412389,1712165433101,-339.58520011,0.000249,2]
[321412391,1712165433110,-339.58520011,0.000249,2]
[321412393,1712165433119,-339.58520011,0.000249,2]
[321412395,1712165433128,-339.58520011,0.000249,2]
[321412397,1712165433136,-4784.0,0.00024948,2]
[321412398,1712165433145,-5696.0,0.00024948,2]
[321412399,1712165433156,-1397.822,0.00024948,2]
[321412400,1712165433165,-43082.0,0.00024948,2]
[321412401,1712165433174,-1190.308,0.00024948,2]
[321412402,1712165433183,-2427.0,0.00024948,2]
[321412403,1712165433193,-964.0,0.00024948,2]
[321412404,1712165433202,-459.0,0.00024948,2]
[321412405,1712165433211,-2456.0,0.00024948,2]
[321412406,1712165433220,-1256.0,0.00024948,2]
[321412407,1712165433230,-718.14162017,0.00024999,2]
[321412408,1712165433239,-78486.723624,0.00025,2]
[321412409,1712165433248,-200.0,0.00025,2]
[321412410,1712165433258,-403.0,0.00025,2]
[321412411,1712165433267,-150.0,0.00025,2]
[321412412,1712165433275,-155.0,0.00025,2]
[321412413,1712165433285,-150.0,0.00025,2]
[321412414,1712165433295,-155.0,0.00025,2]
[321412415,1712165433304,-2600.3152557,0.00025,2]
[321412416,1712165433313,-155.0,0.00025,2]
[321412417,1712165433323,-3100.4221075,0.00025058,2]
[321412418,1712165433331,-18789.3425225,0.00025058,2]
[321412419,1712165433340,-837.5822617,0.00025058,2]
[321412420,1712165433349,-2961.7485482,0.00025075,2]
[321412421,1712165433358,-806.0,0.00025092,2]
[321412422,1712165433368,-2000.0,0.0002522,2]
[321412423,1712165433377,-1200.3379861,0.0002522,2]
[321412424,1712165433386,-200.0,0.0002522,2]
[321412425,1712165433395,-200.0,0.0002525,2]
[321412426,1712165433404,-200.0,0.00025272,2]
[321412427,1712165433414,-587.46,0.00025272,2]
[321412428,1712165433424,-202.0,0.00025272,2]
[321412429,1712165433435,-200.0,0.00025472,2]
[321412430,1712165433445,-200.0,0.00025503,2]
[321412431,1712165433646,-166.62,0.00025726,2]
[321412432,1712165433659,-200.0,0.00025727,2]
[321412433,1712165433669,-200.0,0.00025758,2]
[321412434,1712165433678,-1287.03,0.00025809,2]
[321412435,1712165433690,-458.0,0.000259,2]
[321412436,1712165433699,-1285.0,0.000259,2]
[321412437,1712165433708,-150.0,0.00026,2]
[321412438,1712165433719,-9340.1710422,0.00026367,2]
[321412439,1712165433729,-166.62,0.00026499,2]
[321412440,1712165433745,-1000.0,0.0002667,2]
[321412441,1712165433755,-168.63,0.00026802,2]
[321412442,1712165433764,-300.95161461,0.00027,2]
[321412443,1712165433774,-1055.0,0.00027,2]
[321412444,1712165433784,-168.25565774,0.00027,2]
[321412445,1712165433793,-164.71,0.00027,2]
[321412446,1712165433804,-251.611973,0.00027,2]
[321412447,1712165433815,-863.07,0.00027052,2]
[321412448,1712165433825,-200.0,0.00027106,2]
[321412449,1712165433836,-799.6905,0.0002725,2]
[321412450,1712165433846,-166.62,0.00027272,2]
[321412451,1712165433856,-738.5766,0.00027297,2]
[321412452,1712165433868,-250.0,0.00027397,2]
[321412453,1712165433879,-16275.43,0.00027458,2]
[321412454,1712165433889,-1602.43,0.00027475,2]
[321412455,1712165433902,-188.00914001,0.000275,2]
[321412456,1712165433913,-936.0,0.00027538,2]
[321412457,1712165433923,-449.17905412,0.00027838,2]
[321412458,1712165433937,-363.2031781,0.00027874,2]
[321412459,1712165433950,-9340.1710422,0.00027933,2]
[321412460,1712165433960,-606.0,0.00027938,2]
[321412461,1712165433973,-804.0,0.00027938,2]
[321412462,1712165433984,-279.0,0.00027938,2]
[321412463,1712165433994,-434.0,0.00027938,2]
[321412464,1712165434004,-150.0,0.00027938,2]
[321412465,1712165434015,-397.0,0.00027938,2]
[321412466,1712165434025,-349.813,0.00027938,2]
[321412467,1712165434035,-150.0,0.00027938,2]
[321412468,1712165434046,-214.0,0.00027938,2]
[321412469,1712165434056,-206.0,0.00027938,2]
[321412470,1712165434067,-155.0,0.00027946,2]
[321412471,1712165434293,-262.89580036,0.00027946,2]
[321412472,1712165434306,-767.30754426,0.00027946,2]
[321412473,1712165434317,-230.710396,0.00027946,2]
[321412474,1712165434328,-520.77623655,0.00027946,2]
[321412475,1712165434340,-155.49200959,0.00027946,2]
[321412476,1712165434351,-320.59518909,0.00027946,2]
[321412477,1712165434361,-557.00446148,0.00027946,2]
[321412478,1712165434373,-164.6383037,0.00027946,2]
[321412479,1712165434388,-500.0,0.00027947,2]
[321412480,1712165434400,-165.97505883,0.00027947,2]
[321412481,1712165434411,-4784.0,0.00027948,2]
[321412482,1712165434423,-5696.0,0.00027948,2]
[321412483,1712165434434,-1385.0,0.00027948,2]
[321412484,1712165434446,-43082.0,0.00027948,2]
[321412485,1712165434457,-1179.0,0.00027948,2]
[321412486,1712165434468,-2427.0,0.00027948,2]
[321412487,1712165434478,-964.0,0.00027948,2]
[321412488,1712165434491,-459.0,0.00027948,2]
[321412489,1712165434501,-2456.0,0.00027948,2]
[321412490,1712165434512,-1256.0,0.00027948,2]
[321412491,1712165434522,-1366.37557177,0.00028,2]
[321412492,1712165434532,-496.59051175,0.00028,2]
[321412493,1712165434542,-167.57,0.00028302,2]
[321412494,1712165434552,-1287.03,0.00028548,2]
[321412495,1712165434561,-160.0,0.00028742,2]
[321412496,1712165434571,-168.63,0.00028846,2]
[321412497,1712165434582,-863.07,0.00029316,2]
[321412498,1712165434592,-440.96392074,0.000295,3]
[321412499,1712165434602,-9340.1710422,0.000295,2]
[321412500,1712165434612,-799.6905,0.0002975,2]
[321412501,1712165434621,-2639.48076778,0.0002999,2]
[321412502,1712165434631,-3205.84389542,0.0003,2]
[321412503,1712165434642,-294.3478513,0.0003,2]
[321412504,1712165434652,-158.0,0.0003,2]
[321412505,1712165434662,-762.6179873,0.0003,2]
[321412506,1712165434671,-374.35409843,0.0003,2]
[321412507,1712165434681,-346.53704716,0.0003,2]
[321412508,1712165434705,-155.0,0.0003,2]
[321412509,1712165434717,-405.14841286,0.0003,4]
[321412510,1712165434726,-155.0,0.0003,4]
[321412511,1712165434735,-206.0,0.0003,2]
[321412512,1712165434745,-1000.0,0.000301,2]
[321412513,1712165434758,-443.0,0.000301,2]
[321412514,1712165434768,-355.0,0.000301,2]
[321412515,1712165434778,-162.5942331,0.00030196,2]
[321412516,1712165434788,-170.2,0.00030375,2]
[321412517,1712165434798,-939.56,0.00030384,2]
[321412518,1712165434807,-410.52,0.00030384,2]
[321412519,1712165434817,-1809.1,0.00030384,2]
[321412520,1712165434826,-410.52,0.00030384,2]
[321412521,1712165434836,-410.52,0.00030384,2]
[321412522,1712165434846,-904.55,0.00030384,2]
[321412523,1712165434857,-192.83,0.00030384,2]
[321412524,1712165434867,-904.55,0.00030384,2]
[321412525,1712165434876,-904.55,0.00030384,2]
[321412526,1712165434886,-904.55,0.00030384,2]
[321412527,1712165434896,-936.0,0.00030597,2]
[321412528,1712165434907,-1088.52,0.0003062,2]
[321412529,1712165434917,-167.57,0.00030637,2]
[321412530,1712165434927,-164.55,0.00030703,2]
[321412531,1712165434942,-155.0,0.00030937,2]
[321412532,1712165434952,-223.81801404,0.00030938,2]
[321412533,1712165434962,-606.0,0.00030938,2]
[321412534,1712165434971,-804.0,0.00030938,2]
[321412535,1712165434981,-279.0,0.00030938,2]
[321412536,1712165434991,-434.0,0.00030938,2]
[321412537,1712165435001,-396.0,0.00030938,2]
[321412538,1712165435011,-150.0,0.00030938,2]
[321412539,1712165435020,-214.0,0.00030938,2]
[321412540,1712165435028,-206.0,0.00030938,2]
[321412541,1712165435037,-194.14335948,0.00030945,4]
[321412542,1712165435047,-189.82108161,0.00030945,4]
[321412543,1712165435056,-252.18,0.00030945,4]
[321412544,1712165435066,-330.00215827,0.00030945,4]
[321412545,1712165435075,-560.6155768,0.00030945,4]
[321412546,1712165435085,-337.54766861,0.00030945,4]
[321412547,1712165435095,-307.2511322,0.00030945,4]
[321412548,1712165435105,-156.36941219,0.00030945,4]
[321412549,1712165435115,-155.0,0.00030946,4]
[321412550,1712165435124,-7319.87303075,0.00030947,4]
[321412551,1712165435134,-4784.0,0.00030948,2]
[321412552,1712165435143,-5696.0,0.00030948,2]
[321412553,1712165435153,-43082.0,0.00030948,2]
[321412554,1712165435162,-730.904,0.00030948,2]
[321412555,1712165435171,-171.952,0.00030948,2]
[321412556,1712165435180,-442.633,0.00030948,2]
[321412557,1712165435194,-2456.0,0.00030948,2]
[321412558,1712165435203,-489.98833825,0.00031,4]
[321412559,1712165435213,-9340.1710422,0.00031067,2]
[321412560,1712165435222,-150.0,0.00031196,2]
[321412561,1712165435231,-180.0,0.00031342,2]
[321412562,1712165435241,-4000.0,0.00031507,2]
[321412563,1712165435251,-414.79128171,0.0003158,2]
[321412564,1712165436030,-448.27871829,0.0003158,2]
[321412565,1712165436039,-150.0,0.00031616,2]
[321412566,1712165436049,-150.0,0.00031616,2]
[321412567,1712165436059,-416.91,0.00031616,2]
[321412568,1712165436071,-348.46,0.00031616,2]
[321412569,1712165436081,-150.0,0.00031616,2]
[321412570,1712165436093,-150.0,0.00031616,2]
[321412571,1712165436104,-150.0,0.00031616,2]
[321412572,1712165436117,-150.0,0.00031616,2]
[321412573,1712165436128,-519.19,0.00031616,2]
[321412574,1712165436140,-151.63,0.00031616,2]
[321412575,1712165436152,-161.88,0.00031616,2]
[321412576,1712165436163,-150.0,0.00031616,2]
[321412577,1712165436174,-150.0,0.00031616,2]
[321412578,1712165436192,-446.56,0.00031616,2]
[321412579,1712165436441,-348.46,0.00031616,2]
[321412580,1712165436453,-150.0,0.00031616,2]
[321412581,1712165436464,-150.0,0.00031616,2]
[321412582,1712165436475,-416.91,0.00031616,2]
[321412583,1712165436486,-150.0,0.00031616,2]
[321412584,1712165436497,-519.19,0.00031616,2]
[321412585,1712165436508,-150.0,0.00031616,2]
[321412586,1712165436520,-161.88,0.00031616,2]
[321412587,1712165436531,-348.46,0.00031616,2]
[321412588,1712165436541,-150.0,0.00031616,2]
[321412589,1712165436551,-519.19,0.00031616,2]
[321412590,1712165436562,-150.0,0.00031616,2]
[321412591,1712165436573,-150.0,0.00031616,2]
[321412592,1712165436583,-416.91,0.00031616,2]
[321412593,1712165436593,-150.0,0.00031616,2]
[321412594,1712165436604,-150.0,0.00031616,2]
[321412595,1712165436616,-161.88,0.00031616,2]
[321412596,1712165436626,-150.0,0.00031616,2]
[321412597,1712165436637,-150.0,0.00031616,2]
[321412598,1712165436648,-519.19,0.00031616,2]
[321412599,1712165436658,-416.91,0.00031616,2]
[321412600,1712165436669,-150.0,0.00031616,2]
[321412601,1712165436680,-150.0,0.00031616,2]
[321412602,1712165436695,-348.46,0.00031616,2]
[321412603,1712165436705,-150.0,0.00031616,2]
[321412604,1712165436721,-150.0,0.00031616,2]
[321412605,1712165436732,-161.88,0.00031616,2]
[321412606,1712165436742,-150.0,0.00031616,2]
[321412607,1712165436754,-416.91,0.00031616,2]
[321412608,1712165436764,-150.0,0.00031616,2]
[321412609,1712165436774,-519.19,0.00031616,2]
[321412610,1712165436783,-150.0,0.00031616,2]
[321412611,1712165436794,-150.0,0.00031616,2]
[321412612,1712165436803,-150.0,0.00031616,2]
[321412613,1712165436813,-161.88,0.00031616,2]
[321412614,1712165436823,-348.46,0.00031616,2]
[321412615,1712165436833,-307.06,0.00031616,2]
[321412616,1712165436843,-416.91,0.00031616,2]
[321412617,1712165436852,-519.19,0.00031616,2]
[321412618,1712165436862,-161.88,0.00031616,2]
[321412619,1712165436872,-150.0,0.00031616,2]
[321412620,1712165436882,-348.46,0.00031616,2]
[321412621,1712165436891,-150.0,0.00031616,2]
[321412622,1712165436900,-519.19,0.00031616,2]
[321412623,1712165436911,-348.46,0.00031616,2]
[321412624,1712165436920,-302.29,0.00031616,2]
[321412625,1712165436930,-150.0,0.00031616,2]
[321412626,1712165436942,-416.91,0.00031616,2]
[321412627,1712165436951,-401.33,0.00031616,2]
[321412628,1712165436960,-519.19,0.00031616,2]
[321412629,1712165436970,-150.0,0.00031616,2]
[321412630,1712165436980,-348.46,0.00031616,2]
[321412631,1712165436990,-416.91,0.00031616,2]
[321412632,1712165436999,-416.91,0.00031616,2]
[321412633,1712165437009,-305.63,0.00031616,2]
[321412634,1712165437018,-348.46,0.00031616,2]
[321412635,1712165437028,-375.87,0.00031616,2]
[321412636,1712165437037,-416.91,0.00031616,2]
[321412637,1712165437047,-348.46,0.00031616,2]
[321412638,1712165437056,-416.91,0.00031616,2]
[321412639,1712165437066,-378.63,0.00031616,2]
[321412640,1712165437077,-416.91,0.00031616,2]
[321412641,1712165437086,-416.91,0.00031616,2]
[321412642,1712165437096,-760.42,0.00031616,2]
[321412643,1712165437106,-270.0,0.00031644,2]
[321412644,1712165437115,-170.2,0.00031664,2]
[321412645,1712165437124,-5800.0,0.00032,2]
[321412646,1712165437134,-568.6844637,0.00032,4]